bitfinex/quotes_BTCUSD_20241128
["timestamp","ask_amount","ask_price","bid_price","bid_amount"]
[1732804652912,0.084282,95893.0,95892.0,0.001725]
[1732804653402,0.00700821,95893.0,95892.0,0.001725]
[1732804653875,0.10428,95895.0,95892.0,0.001725]
[1732804654099,0.104278,95897.0,95892.0,0.001725]
[1732804654347,0.11128821,95896.0,95892.0,0.001725]
[1732804654596,0.11128821,95896.0,95892.0,0.0461289]
[1732804654831,0.104281,95895.0,95892.0,0.0461289]
[1732804655293,0.00700821,95894.0,95892.0,0.0521289]
[1732804655555,0.00700821,95894.0,95892.0,0.0461289]
[1732804655789,0.00700821,95894.0,95892.0,0.0521289]
[1732804656032,0.0099618,95912.0,95893.0,0.10284521]
[1732804656277,0.0099618,95912.0,95893.0,0.10469097]
[1732804656550,0.104253,95921.0,95914.0,0.104259]
[1732804656812,0.358482,95932.0,95915.0,0.10284521]
[1732804656813,0.208483,95931.0,95915.0,0.10284521]
[1732804657053,0.0098294,95932.0,95915.0,0.10284521]
[1732804657054,0.208506,95921.0,95915.0,0.10284521]
[1732804657296,0.208499,95924.0,95915.0,0.10284521]
[1732804657521,0.10426,95914.0,95901.0,0.0791]
[1732804657738,0.10426,95914.0,95908.0,0.104265]
[1732804658222,0.10426,95914.0,95902.0,0.31138921]
[1732804658223,0.104262,95912.0,95903.0,0.208544]
[1732804658473,0.104262,95912.0,95904.0,0.10284521]
[1732804658474,0.001,95912.0,95904.0,0.10284521]
[1732804658704,0.0099201,95928.0,95908.0,0.104266]
[1732804658705,0.10426,95914.0,95908.0,0.104266]
[1732804658940,0.10426,95914.0,95908.0,0.109266]
[1732804659398,0.208514,95917.0,95908.0,0.109266]
[1732804659671,0.208514,95917.0,95908.0,0.005]
[1732804659672,0.104262,95912.0,95908.0,0.005]
[1732804659891,0.104265,95909.0,95908.0,0.005]
[1732804660338,0.15040646,95920.0,95896.0,0.09288924]
[1732804660556,0.023,95927.0,95908.0,0.003]
[1732804660773,0.104265,95909.0,95908.0,0.003]
[1732804661269,0.208517,95916.0,95896.0,0.10284521]
[1732804661270,0.104258,95916.0,95899.0,0.00184561]
[1732804661492,0.1598669,95929.0,95908.0,0.002]
[1732804661717,0.1598669,95929.0,95906.0,0.104268]
[1732804661718,0.023,95928.0,95906.0,0.104268]
[1732804661956,0.20851,95919.0,95900.0,0.11788429]
[1732804662187,0.0098813,95929.0,95908.0,0.0789]
[1732804662428,0.208467,95938.0,95909.0,0.10284521]
[1732804662657,0.0008625,95940.0,95915.0,0.208516]
[1732804662887,0.104246,95927.0,95917.0,0.208513]
[1732804663121,0.0008625,95940.0,95917.0,0.20710021]
[1732804663352,0.104248,95925.0,95919.0,0.104254]
[1732804663581,0.104249,95924.0,95919.0,0.104254]
[1732804663818,0.104233,95938.0,95919.0,0.104254]
[1732804664060,0.104248,95925.0,95920.0,0.104253]
[1732804664301,0.104247,95926.0,95920.0,0.14789865]
[1732804664523,0.104249,95924.0,95918.0,0.104255]
[1732804664739,0.208494,95926.0,95920.0,0.104253]
[1732804665016,0.104248,95925.0,95920.0,0.104253]
[1732804665227,0.208494,95926.0,95917.0,0.10284521]
[1732804665451,0.0106664,95939.0,95917.0,0.10284521]
[1732804665690,0.104252,95921.0,95920.0,0.001]
[1732804666857,0.104253,95920.0,95919.0,0.001]
[1732804667122,0.208487,95929.0,95900.0,0.01503908]
[1732804667339,0.104252,95921.0,95920.0,0.001]
[1732804667602,0.104268,95907.0,95900.0,0.01503908]
[1732804667817,0.20853,95910.0,95900.0,0.01503908]
[1732804667818,0.104269,95906.0,95900.0,0.104274]
[1732804668050,0.104266,95908.0,95900.0,0.104274]
[1732804668264,0.104269,95906.0,95900.0,0.104274]
[1732804668488,0.13736976,95928.0,95897.0,0.0819]
[1732804668767,0.13736976,95928.0,95895.0,0.0457]
[1732804668768,0.023,95919.0,95895.0,0.0457]
[1732804669006,0.173,95917.0,95895.0,0.01454859]
[1732804669248,0.104268,95907.0,95901.0,0.104274]
[1732804669468,0.0767,95929.0,95905.0,0.104269]
[1732804669469,0.104263,95911.0,95905.0,0.104269]
[1732804669701,0.104263,95911.0,95895.0,0.01454859]
[1732804669702,0.009811,95917.0,95904.0,0.0496]
[1732804669933,0.208516,95916.0,95905.0,0.01524452]
[1732804670173,0.104264,95910.0,95905.0,0.11951352]
[1732804670605,0.104262,95912.0,95906.0,0.104268]
[1732804670830,0.00572216,95909.0,95906.0,0.104268]
[1732804671065,0.104263,95911.0,95906.0,0.104268]
[1732804671316,0.00572216,95908.0,95907.0,0.0221958]
[1732804671558,0.00573571,95908.0,95907.0,0.1264628]
[1732804671811,0.104252,95922.0,95916.0,0.104257]
[1732804672042,0.208498,95924.0,95916.0,0.104257]
[1732804672275,0.00571239,95921.0,95918.0,0.104254]
[1732804672507,0.10425,95923.0,95913.0,0.0797]
[1732804672753,0.104249,95924.0,95917.0,0.104256]
[1732804672974,0.104254,95920.0,95915.0,0.104258]
[1732804673412,0.00571239,95919.0,95915.0,0.104258]
[1732804673642,0.10996739,95919.0,95914.0,0.20710421]
[1732804673861,0.00571239,95919.0,95914.0,0.10284521]
[1732804674104,0.00571239,95919.0,95907.0,0.003]
[1732804674325,0.104265,95910.0,95908.0,0.10284521]
[1732804674543,0.15040646,95930.0,95908.0,0.10284521]
[1732804674762,0.00572274,95909.0,95908.0,0.10284521]
[1732804675000,0.0008628,95925.0,95908.0,0.10284521]
[1732804675227,0.104258,95915.0,95914.0,0.001]
[1732804675451,0.0008628,95925.0,95908.0,0.14664433]
[1732804675679,0.00572274,95915.0,95914.0,0.20710521]
[1732804675917,0.0008628,95925.0,95914.0,0.10284521]
[1732804676138,0.104258,95915.0,95914.0,0.10284521]
[1732804676368,0.00571656,95915.0,95914.0,0.10284521]
[1732804676628,0.00571656,95915.0,95908.0,0.005]
[1732804676866,0.00571656,95915.0,95909.0,0.00651986]
[1732804677096,0.10426,95914.0,95910.0,0.00651986]
[1732804677309,0.10997775,95914.0,95910.0,0.00651986]
[1732804677539,0.104262,95912.0,95910.0,0.00651986]
[1732804677786,0.104262,95912.0,95905.0,0.285538]
[1732804677787,0.10426,95914.0,95911.0,0.00651986]
[1732804678023,0.104261,95913.0,95908.0,0.104266]
[1732804678266,0.208503,95922.0,95909.0,0.00851984]
[1732804678494,0.104261,95913.0,95910.0,0.00651984]
[1732804678707,0.104261,95913.0,95911.0,0.00651984]
[1732804678949,0.208518,95915.0,95909.0,0.002]
[1732804679174,0.104264,95910.0,95909.0,0.002]
[1732804679626,0.208508,95920.0,95904.0,0.104269]
[1732804679627,0.208517,95915.0,95904.0,0.104269]
[1732804679849,0.104266,95909.0,95905.0,0.04057093]
[1732804680094,0.023,95928.0,95905.0,0.04057093]
[1732804680354,0.0107616,95925.0,95905.0,0.04057093]
[1732804680579,0.104265,95910.0,95908.0,0.006]
[1732804680837,0.15040646,95920.0,95895.0,0.11882859]
[1732804681061,0.15040646,95920.0,95892.0,0.23500158]
[1732804681062,0.104281,95894.0,95892.0,0.09461329]
[1732804681288,0.12584521,95919.0,95892.0,0.001725]
[1732804681506,0.023,95915.0,95898.0,0.104277]
[1732804681721,0.12584521,95919.0,95905.0,0.003]
[1732804681722,0.104268,95906.0,95905.0,0.003]
[1732804681947,0.12584521,95919.0,95899.0,0.01077276]
[1732804681948,0.104275,95900.0,95899.0,0.01077276]
[1732804682169,0.13577741,95919.0,95894.0,0.104281]
[1732804682396,0.15040646,95920.0,95894.0,0.104281]
[1732804682397,0.104257,95917.0,95911.0,0.104262]
[1732804682846,0.0108624,95939.0,95900.0,0.09288829]
[1732804682847,0.0008624,95939.0,95900.0,0.09288829]
[1732804682851,0.0099883,95919.0,95912.0,0.10284521]
[1732804683061,0.208495,95926.0,95918.0,0.104255]
[1732804683062,0.104249,95924.0,95918.0,0.104255]
[1732804683283,0.104249,95924.0,95912.0,0.31136821]
[1732804683284,0.208498,95924.0,95914.0,0.20852]
[1732804683559,0.0008628,95925.0,95915.0,0.10284521]
[1732804683560,0.00558742,95923.0,95915.0,0.10284521]
[1732804683818,0.104259,95915.0,95910.0,0.104264]
[1732804684080,0.0008628,95925.0,95893.0,0.0017256]
[1732804684081,0.10426,95914.0,95908.0,0.104266]
[1732804684434,0.0008628,95925.0,95924.0,0.104249]
[1732804684645,0.0008628,95925.0,95924.0,0.20709421]
[1732804684850,0.0008628,95925.0,95924.0,0.42399768]
[1732804685060,0.0008624,95939.0,95925.0,0.208496]
[1732804685299,0.0008624,95939.0,95937.0,0.104234]
[1732804685517,0.0008624,95939.0,95938.0,0.0312708]
[1732804685777,0.0008624,95939.0,95938.0,0.20707821]
[1732804685984,0.0008624,95939.0,95938.0,0.25677821]
[1732804686215,0.0008624,95939.0,95938.0,0.39633065]
[1732804686429,0.0008624,95939.0,95938.0,0.15254521]
[1732804686669,0.0008624,95939.0,95938.0,0.52096184]
[1732804686884,0.0008624,95939.0,95938.0,0.47420938]
[1732804687313,0.0008624,95939.0,95938.0,0.26377821]
[1732804687542,0.0008624,95939.0,95938.0,0.27277821]
[1732804688031,0.0008624,95939.0,95938.0,0.34974088]
[1732804688238,0.0008624,95939.0,95938.0,0.26577821]
[1732804688470,0.0008618,95958.0,95938.0,0.26577821]
[1732804688471,0.0008618,95958.0,95948.0,0.104223]
[1732804688673,0.0008618,95958.0,95948.0,0.23833641]
[1732804689304,0.0008618,95958.0,95948.0,0.3312418]
[1732804689515,0.0008618,95958.0,95948.0,0.23833641]
[1732804690325,0.0008618,95958.0,95948.0,0.38771097]
[1732804690594,0.0008618,95958.0,95948.0,0.24833641]
[1732804690789,0.0008618,95958.0,95948.0,0.33516182]
[1732804691001,0.0008618,95958.0,95948.0,0.34316182]
[1732804692356,0.0008618,95958.0,95948.0,0.25033641]
[1732804693458,0.0008618,95958.0,95948.0,0.3430793]
[1732804693694,0.0008618,95958.0,95948.0,0.3118111]
[1732804693921,0.0008618,95958.0,95948.0,0.21906821]
[1732804698887,0.0008618,95958.0,95948.0,0.116223]
[1732804699130,0.2092868,95958.0,95948.0,0.116223]
[1732804699395,0.104218,95953.0,95948.0,0.116223]
[1732804699841,0.2092868,95958.0,95948.0,0.116223]
[1732804700083,0.208426,95957.0,95948.0,0.012]
[1732804700305,0.0008618,95958.0,95949.0,0.03249964]
[1732804700545,0.104217,95954.0,95949.0,0.104221]
[1732804701057,0.208427,95957.0,95948.0,0.008]
[1732804701058,0.104219,95952.0,95948.0,0.008]
[1732804701306,0.0008618,95958.0,95941.0,0.208461]
[1732804701559,0.0008618,95958.0,95942.0,0.16904275]
[1732804701813,0.104217,95954.0,95950.0,0.10422]
[1732804702045,0.0008618,95958.0,95945.0,0.20845]
[1732804702046,0.0008618,95958.0,95946.0,0.20845]
[1732804702326,0.104215,95955.0,95949.0,0.006]
[1732804702565,0.104215,95955.0,95946.0,0.14076694]
[1732804702566,0.104215,95955.0,95951.0,0.104219]
[1732804702803,0.0008618,95958.0,95954.0,0.104215]
[1732804703036,0.0008618,95958.0,95952.0,0.104218]
[1732804703037,0.104213,95957.0,95952.0,0.104218]
[1732804703273,0.104214,95956.0,95952.0,0.104218]
[1732804703511,0.104214,95956.0,95952.0,0.17516529]
[1732804703744,0.0008618,95958.0,95952.0,0.07094729]
[1732804703996,0.0008618,95958.0,95952.0,0.208436]
[1732804704222,0.0008618,95958.0,95954.0,0.106215]
[1732804704465,0.0008618,95958.0,95957.0,0.104213]
[1732804704686,0.0008618,95958.0,95957.0,0.20705821]
[1732804704906,0.0008618,95958.0,95957.0,0.104213]
[1732804706065,0.0008618,95958.0,95957.0,0.108213]
[1732804706758,0.0008618,95958.0,95957.0,0.110213]
[1732804707211,0.0008618,95958.0,95957.0,0.006]
[1732804707453,0.0008618,95958.0,95957.0,0.02858783]
[1732804707686,0.0008618,95958.0,95957.0,0.006]
[1732804708450,0.1050738,95958.0,95957.0,0.006]
[1732804709180,0.0008618,95958.0,95957.0,0.006]
[1732804709427,0.0008618,95958.0,95957.0,0.004]
[1732804709643,0.0008618,95958.0,95957.0,0.108213]
[1732804709855,0.0008618,95958.0,95957.0,0.110213]
[1732804710128,0.0008618,95958.0,95957.0,0.1629219]
[1732804710347,0.0008618,95958.0,95957.0,0.1609219]
[1732804710588,0.0008618,95958.0,95957.0,0.1589219]
[1732804710812,0.0008618,95958.0,95957.0,0.1619219]
[1732804711051,0.0008618,95958.0,95957.0,0.0577089]
[1732804711302,0.0008618,95958.0,95957.0,0.0547089]
[1732804711737,0.0008618,95958.0,95957.0,0.0587089]
[1732804711983,0.0008618,95958.0,95957.0,0.1629219]
[1732804713857,0.0008618,95958.0,95957.0,0.26576711]
[1732804714266,0.0008618,95958.0,95957.0,0.26413493]
[1732804714920,0.0004,95969.0,95957.0,0.15992193]
[1732804715149,0.0004,95969.0,95958.0,0.1312174]
[1732804715364,0.0004,95969.0,95964.0,0.20841]
[1732804715582,0.0004,95969.0,95958.0,0.1312174]
[1732804715815,0.104204,95966.0,95959.0,0.208422]
[1732804716030,0.0004,95969.0,95961.0,0.208418]
[1732804716250,0.0004,95969.0,95962.0,0.17553932]
[1732804716525,0.104204,95965.0,95962.0,0.07269411]
[1732804716766,0.0004,95969.0,95963.0,0.10284521]
[1732804716982,0.0004,95969.0,95968.0,0.104201]
[1732804717201,0.0004,95969.0,95966.0,0.104203]
[1732804717425,0.0004,95969.0,95967.0,0.104202]
[1732804718102,0.0004,95969.0,95968.0,0.104201]
[1732804718322,0.0004,95969.0,95963.0,0.10284521]
[1732804718539,0.0004,95969.0,95964.0,0.104205]
[1732804718773,0.0004,95969.0,95965.0,0.208409]
[1732804719023,0.0004,95969.0,95968.0,0.104201]
[1732804719258,0.0004,95969.0,95966.0,0.104203]
[1732804719684,0.0004,95969.0,95963.0,0.10284521]
[1732804719900,0.0004,95969.0,95965.0,0.104204]
[1732804720117,0.0004,95969.0,95966.0,0.104203]
[1732804720580,0.0004,95969.0,95965.0,0.104204]
[1732804721035,0.0004,95969.0,95966.0,0.104203]
[1732804721257,0.0004,95969.0,95964.0,0.03112612]
[1732804721740,0.0004,95969.0,95965.0,0.15928363]
[1732804721944,0.0004,95969.0,95967.0,0.104202]
[1732804722634,0.1046,95969.0,95965.0,0.05508063]
[1732804723069,0.0004,95969.0,95965.0,0.05508063]
[1732804723282,0.1046,95969.0,95965.0,0.05508063]
[1732804723497,0.1046,95969.0,95966.0,0.0397468]
[1732804723916,0.0004,95969.0,95966.0,0.0397468]
[1732804724150,0.0004,95969.0,95965.0,0.05508063]
[1732804724151,0.104202,95967.0,95965.0,0.05508063]
[1732804724365,0.104202,95967.0,95963.0,0.10284521]
[1732804724366,0.1046,95969.0,95964.0,0.104205]
[1732804724590,0.1046,95969.0,95963.0,0.10284521]
[1732804724591,0.0004,95969.0,95963.0,0.10284521]
[1732804724811,0.104204,95966.0,95963.0,0.10284521]
[1732804725275,0.0004,95969.0,95959.0,0.09277596]
[1732804725527,0.208415,95963.0,95959.0,0.09277596]
[1732804725760,0.208415,95962.0,95959.0,0.09277596]
[1732804725977,0.10421,95960.0,95959.0,0.09277596]
[1732804726195,0.10421,95960.0,95956.0,0.13916394]
[1732804726196,0.0004,95969.0,95956.0,0.09277596]
[1732804726417,0.0004,95969.0,95949.0,0.45370316]
[1732804726418,0.208402,95968.0,95957.0,0.04174918]
[1732804726648,0.208413,95963.0,95957.0,0.04174918]
[1732804726894,0.10421,95960.0,95959.0,0.001]
[1732804728317,0.104211,95959.0,95958.0,0.09277596]
[1732804728559,0.081,95964.0,95956.0,0.09303267]
[1732804728800,0.081,95964.0,95955.0,0.09303267]
[1732804728801,0.104214,95956.0,95955.0,0.09303267]
[1732804729032,0.104214,95956.0,95952.0,0.13954901]
[1732804729033,0.081,95964.0,95952.0,0.09303267]
[1732804729376,0.104217,95953.0,95952.0,0.09303267]
[1732804729553,0.208432,95955.0,95954.0,0.09303267]
[1732804729785,0.208432,95955.0,95949.0,0.0017254]
[1732804729786,0.104216,95954.0,95953.0,0.09316926]
[1732804730008,0.208432,95955.0,95949.0,0.18779075]
[1732804730009,0.208432,95955.0,95952.0,0.13954901]
[1732804730241,0.104217,95953.0,95952.0,0.13954901]
[1732804730472,0.208435,95954.0,95952.0,0.53039935]
[1732804730698,0.104217,95953.0,95952.0,0.18647988]
[1732804730928,0.104217,95953.0,95952.0,0.53066623]
[1732804731390,0.104217,95953.0,95952.0,0.34418635]
[1732804732357,0.104217,95953.0,95952.0,0.53070246]
[1732804732611,0.104217,95953.0,95952.0,0.60920342]
[1732804733076,0.104217,95953.0,95952.0,0.53270246]
[1732804733780,0.104217,95953.0,95952.0,0.53670246]
[1732804734498,0.104217,95953.0,95952.0,0.35018635]
[1732804734996,0.104217,95953.0,95952.0,0.09930118]
[1732804735258,0.47276221,95953.0,95952.0,0.006]
[1732804735844,0.48276221,95953.0,95952.0,0.006]
[1732804736104,0.48276221,95953.0,95952.0,0.004]
[1732804736526,0.11422,95950.0,95949.0,0.0017254]
[1732804736734,0.39006521,95950.0,95949.0,0.0017254]
[1732804737747,0.47276521,95950.0,95949.0,0.0017254]
[1732804738152,0.47276521,95950.0,95949.0,0.0027254]
[1732804738375,0.47276521,95950.0,95949.0,0.0017254]
[1732804740234,0.46276521,95950.0,95949.0,0.0017254]
[1732804742299,0.52300387,95950.0,95949.0,0.0017254]
[1732804742523,0.52300387,95950.0,95940.0,0.0017246]
[1732804742524,0.104264,95910.0,95909.0,0.09327304]
[1732804742730,0.104265,95909.0,95908.0,0.0017252]
[1732804742973,0.254265,95909.0,95908.0,0.0017252]
[1732804743918,0.254265,95909.0,95908.0,0.0027252]
[1732804744578,0.2658198,95909.0,95908.0,0.0027252]
[1732804745701,0.2668198,95909.0,95908.0,0.0027252]
[1732804746372,0.2698198,95909.0,95908.0,0.0027252]
[1732804746820,0.2668198,95909.0,95908.0,0.0017252]
[1732804747039,0.2678198,95909.0,95908.0,0.0017252]
[1732804750399,0.106265,95909.0,95908.0,0.0017252]
[1732804750614,0.106265,95909.0,95908.0,0.11937372]
[1732804750615,0.002,95909.0,95908.0,0.11937372]
[1732804750834,0.208483,95931.0,95909.0,0.208531]
[1732804751074,0.208483,95931.0,95908.0,0.26183175]
[1732804751075,0.208483,95931.0,95910.0,0.10469046]
[1732804751286,0.01138754,95939.0,95908.0,0.1338252]
[1732804751287,0.208515,95917.0,95908.0,0.1338252]
[1732804751500,0.105265,95909.0,95908.0,0.0017252]
[1732804752837,0.104265,95909.0,95908.0,0.0027252]
[1732804753694,0.104265,95909.0,95908.0,0.0057252]
[1732804754361,0.023,95915.0,95908.0,0.0057252]
[1732804754588,0.104265,95909.0,95908.0,0.0057252]
[1732804755358,0.104265,95909.0,95908.0,0.0047252]
[1732804755809,0.104265,95909.0,95908.0,0.0017252]
[1732804756285,0.104265,95909.0,95908.0,0.0027252]
[1732804758373,0.105265,95909.0,95908.0,0.0027252]
[1732804758822,0.104265,95909.0,95908.0,0.0027252]
[1732804759044,0.105265,95909.0,95908.0,0.0027252]
[1732804759688,0.105265,95909.0,95908.0,0.0017252]
[1732804759689,0.128265,95909.0,95908.0,0.0017252]
[1732804760108,0.129265,95909.0,95908.0,0.0017252]
[1732804760349,0.23111021,95909.0,95908.0,0.0017252]
[1732804760580,0.23211021,95909.0,95908.0,0.0017252]
[1732804761740,0.47904142,95909.0,95908.0,0.0017252]
[1732804762019,0.47904142,95909.0,95893.0,0.0017256]
[1732804762020,0.222781,95894.0,95893.0,0.0017256]
[1732804762275,0.47562621,95894.0,95893.0,0.0017256]
[1732804763202,0.47962621,95894.0,95893.0,0.0027256]
[1732804763426,0.47562621,95894.0,95893.0,0.0017256]
[1732804763641,0.47562621,95894.0,95889.0,1e-06]
[1732804763642,0.124286,95890.0,95889.0,1e-06]
[1732804763866,0.162102,95875.0,95874.0,0.0017218]
[1732804764095,0.41494721,95875.0,95874.0,0.0017218]
[1732804765034,0.38014721,95875.0,95874.0,0.0017218]
[1732804765276,0.104302,95875.0,95874.0,0.0017218]
[1732804765717,0.004,95875.0,95874.0,0.0027218]
[1732804766171,0.0098378,95894.0,95874.0,0.1060248]
[1732804766423,0.104302,95875.0,95874.0,0.0017218]
[1732804766654,0.113302,95875.0,95874.0,0.0027218]
[1732804766867,0.104302,95875.0,95874.0,0.0017218]
[1732804767315,0.104302,95875.0,95874.0,0.0067218]
[1732804767560,0.104302,95875.0,95874.0,0.0017218]
[1732804767809,0.104302,95875.0,95874.0,0.0047218]
[1732804768055,0.107302,95875.0,95874.0,0.0017218]
[1732804768506,0.130302,95875.0,95874.0,0.0017218]
[1732804768754,0.127302,95875.0,95874.0,0.0017218]
[1732804768970,0.127302,95875.0,95874.0,0.0037218]
[1732804769412,0.127302,95875.0,95874.0,0.0017218]
[1732804769633,0.127302,95875.0,95874.0,0.0067218]
[1732804769878,0.129302,95875.0,95874.0,0.0017218]
[1732804770107,0.106302,95875.0,95874.0,0.0017218]
[1732804770366,0.109302,95875.0,95874.0,0.0017218]
[1732804771061,0.106302,95875.0,95874.0,0.0017218]
[1732804771296,0.104302,95875.0,95874.0,0.0027218]
[1732804772450,0.208586,95884.0,95874.0,0.01095398]
[1732804772451,0.104299,95878.0,95874.0,0.01095398]
[1732804772663,0.15040646,95900.0,95874.0,0.01095398]
[1732804772664,0.1043,95877.0,95874.0,0.01095398]
[1732804773117,0.104294,95882.0,95874.0,0.0027218]
[1732804773586,0.023,95887.0,95874.0,0.0017218]
[1732804773587,0.104302,95875.0,95874.0,0.0017218]
[1732804773823,0.127302,95875.0,95874.0,0.0017218]
[1732804774274,0.23014721,95875.0,95874.0,0.0017218]
[1732804774514,0.24014721,95875.0,95874.0,0.0017218]
[1732804775467,0.25340182,95875.0,95874.0,0.0027218]
[1732804775922,0.40140182,95875.0,95874.0,0.0027218]
[1732804776368,0.40440182,95875.0,95874.0,0.0027218]
[1732804776805,0.40440182,95875.0,95874.0,0.0017218]
[1732804777024,0.41040182,95875.0,95874.0,0.0027218]
[1732804777896,0.42040182,95875.0,95874.0,0.0027218]
[1732804783145,0.41040182,95875.0,95874.0,0.0027218]
[1732804783355,0.37740182,95875.0,95874.0,0.0027218]
[1732804783811,0.12455661,95875.0,95874.0,0.0027218]
[1732804784726,0.113302,95875.0,95874.0,0.0027218]
[1732804786099,0.110302,95875.0,95874.0,0.0027218]
[1732804786314,0.111302,95875.0,95874.0,0.0027218]
[1732804786534,0.007,95875.0,95874.0,0.0027218]
[1732804786754,0.007,95875.0,95874.0,0.1070248]
[1732804786977,0.009841,95894.0,95891.0,0.104284]
[1732804787196,0.009841,95894.0,95875.0,0.1251]
[1732804787197,0.104286,95890.0,95876.0,0.104301]
[1732804787655,0.02,95913.0,95875.0,0.1251]
[1732804787656,0.0008632,95889.0,95888.0,0.104288]
[1732804789099,0.0008632,95889.0,95888.0,0.228988]
[1732804789824,0.0008632,95889.0,95888.0,0.229988]
[1732804790077,0.0008632,95889.0,95888.0,0.33281946]
[1732804790298,0.0008632,95889.0,95888.0,0.33181946]
[1732804790764,0.0008632,95889.0,95888.0,0.43666467]
[1732804790981,0.0008632,95889.0,95888.0,0.43966467]
[1732804791440,0.0008632,95889.0,95888.0,0.43666467]
[1732804791662,0.0008632,95889.0,95888.0,0.44566467]
[1732804791663,0.0018632,95889.0,95888.0,0.44566467]
[1732804791900,0.0099098,95908.0,95907.0,0.229167]
[1732804792118,0.000863,95911.0,95910.0,0.104264]
[1732804793979,0.000863,95911.0,95910.0,0.108264]
[1732804794420,0.000863,95911.0,95910.0,0.104264]
[1732804794850,0.000863,95911.0,95910.0,0.108264]
[1732804795060,0.000863,95911.0,95910.0,0.116264]
[1732804795302,0.000863,95911.0,95910.0,0.012]
[1732804795557,0.105126,95911.0,95910.0,0.012]
[1732804795800,0.38097121,95911.0,95910.0,0.012]
[1732804796751,0.38097121,95911.0,95910.0,0.008]
[1732804797183,0.104281,95894.0,95893.0,0.0464]
[1732804798099,0.10351317,95894.0,95893.0,0.0464]
[1732804798554,0.208558,95897.0,95893.0,0.0554]
[1732804798779,0.09325846,95954.0,95897.0,0.104278]
[1732804798780,0.000863,95911.0,95897.0,0.104278]
[1732804799036,0.000863,95911.0,95894.0,0.00554]
[1732804799255,0.104275,95900.0,95894.0,0.00554]
[1732804799696,0.208545,95903.0,95894.0,0.109821]
[1732804799930,0.104275,95900.0,95894.0,0.109821]
[1732804800143,0.20844201,95903.0,95894.0,0.00554]
[1732804800413,0.104276,95899.0,95894.0,0.00554]
[1732804800936,0.104276,95899.0,95895.0,0.0367795]
[1732804801359,0.01164216,95910.0,95894.0,0.00754]
[1732804801360,0.10428,95895.0,95894.0,0.01054]
[1732804801614,0.023,95909.0,95894.0,0.00854]
[1732804801827,0.104281,95894.0,95893.0,0.0464]
[1732804802335,0.16204862,95910.0,95874.0,0.26275358]
[1732804802336,0.104295,95881.0,95880.0,0.0497]
[1732804802583,0.104295,95881.0,95874.0,0.0017218]
[1732804802584,0.023,95891.0,95874.0,0.0017218]
[1732804802828,0.173,95893.0,95876.0,0.00843484]
[1732804802829,0.208583,95885.0,95876.0,0.00843484]
[1732804803113,0.208583,95885.0,95874.0,0.0017218]
[1732804803114,0.208585,95885.0,95874.0,0.0017218]
[1732804803339,0.104301,95876.0,95874.0,0.0017218]
[1732804803603,0.127301,95876.0,95874.0,0.0017218]
[1732804804545,0.127301,95876.0,95875.0,0.0027266]
[1732804804785,0.127301,95876.0,95875.0,0.0067266]
[1732804805002,0.127301,95876.0,95875.0,0.0057266]
[1732804805214,0.127301,95876.0,95875.0,0.0017266]
[1732804805648,0.127301,95876.0,95875.0,0.0057266]
[1732804805867,0.127301,95876.0,95875.0,0.0077266]
[1732804806355,0.38014621,95876.0,95875.0,0.0077266]
[1732804806595,0.46884621,95876.0,95875.0,0.0077266]
[1732804807321,0.46884621,95876.0,95875.0,0.0057266]
[1732804807322,0.47884621,95876.0,95875.0,0.0057266]
[1732804807547,0.47884621,95876.0,95875.0,0.0017266]
[1732804807765,0.47984621,95876.0,95875.0,0.0027266]
[1732804808009,0.47884621,95876.0,95875.0,0.0017266]
[1732804808471,0.48184621,95876.0,95875.0,0.0027266]
[1732804808945,0.48184621,95876.0,95875.0,6e-07]
[1732804809174,0.48184621,95876.0,95874.0,4e-07]
[1732804809175,0.124302,95875.0,95874.0,4e-07]
[1732804809473,0.124302,95875.0,95853.0,0.0017248]
[1732804809474,0.297325,95854.0,95853.0,0.0017248]
[1732804809709,0.47957021,95854.0,95853.0,0.0017248]
[1732804810196,0.47957021,95854.0,95844.0,0.001725]
[1732804810197,0.124335,95845.0,95844.0,3e-06]
[1732804810440,0.40018021,95845.0,95844.0,3e-06]
[1732804810951,0.41142013,95845.0,95844.0,3e-06]
[1732804811212,0.39142013,95845.0,95844.0,3e-06]
[1732804811446,0.38218021,95845.0,95844.0,0.001003]
[1732804811676,0.39018021,95845.0,95844.0,0.001003]
[1732804812127,0.266335,95845.0,95844.0,0.001003]
[1732804812358,0.266335,95845.0,95844.0,3e-06]
[1732804812359,0.256335,95845.0,95844.0,3e-06]
[1732804812585,0.106335,95845.0,95844.0,3e-06]
[1732804813330,0.107335,95845.0,95844.0,3e-06]
[1732804813837,0.21418021,95845.0,95844.0,3e-06]
[1732804814056,0.20818021,95845.0,95844.0,3e-06]
[1732804814276,0.23118021,95845.0,95844.0,0.001003]
[1732804814506,0.23018021,95845.0,95844.0,0.001003]
[1732804814722,0.23018021,95845.0,95844.0,3e-06]
[1732804814940,0.23518021,95845.0,95844.0,3e-06]
[1732804815393,0.23418021,95845.0,95844.0,3e-06]
[1732804815622,0.38818021,95845.0,95844.0,3e-06]
[1732804815848,0.39018021,95845.0,95844.0,3e-06]
[1732804816594,0.38818021,95845.0,95844.0,3e-06]
[1732804817091,0.39172375,95845.0,95844.0,3e-06]
[1732804817340,0.39572375,95845.0,95844.0,3e-06]
[1732804818315,0.39772375,95845.0,95844.0,3e-06]
[1732804819001,0.006,95845.0,95844.0,0.046503]
[1732804819701,0.004,95845.0,95844.0,0.046503]
[1732804820137,0.004,95845.0,95844.0,0.20606802]
[1732804820635,0.0099023,95864.0,95844.0,0.047503]
[1732804820855,0.208631,95863.0,95844.0,0.048503]
[1732804821074,0.0099023,95864.0,95847.0,0.208665]
[1732804821346,0.0099023,95864.0,95850.0,0.104329]
[1732804821565,0.023,95863.0,95852.0,0.104327]
[1732804821808,0.023,95864.0,95844.0,0.047503]
[1732804822039,0.104315,95863.0,95857.0,0.104321]
[1732804822303,0.104315,95863.0,95845.0,0.0124203]
[1732804822304,0.001,95863.0,95862.0,0.104316]
[1732804822549,0.10431,95868.0,95862.0,0.104316]
[1732804822783,0.10431,95868.0,95845.0,0.11526551]
[1732804822784,0.104311,95868.0,95863.0,0.1356091]